bitfinex-derivatives/quotes_ETHF0:USTF0_20251005
["timestamp","ask_amount","ask_price","bid_price","bid_amount"]
[1759683658081,1.43632741,4536.5,4536.4,0.00215594]
[1759683660180,1.12312741,4536.5,4536.4,2.66051594]
[1759683660484,5.4873,4537.0,4536.9,1.6035]
[1759683660685,1.3153,4536.8,4536.7,0.23]
[1759683660986,2.75125986,4536.8,4536.7,0.23]
[1759683661878,2.75125986,4536.8,4536.7,1.8335]
[1759683662781,2.76472612,4539.3,4536.7,1.8335]
[1759683662782,3.2078,4537.5,4537.3,2.65828]
[1759683662987,0.4719728,4537.4,4537.3,2.88828]
[1759683663183,1.04755,4537.8,4537.7,0.6695]
[1759683663387,1.51973627,4537.8,4537.7,1.6035]
[1759683663687,1.12318627,4537.8,4537.7,2.2617]
[1759683663886,0.47218627,4537.8,4537.7,2.2617]
[1759683664582,3.2078,4538.7,4538.6,0.934]
[1759683664778,0.4723908,4538.7,4538.6,0.934]
[1759683665382,0.00274792,4539.2,4539.1,0.934]
[1759683665687,0.00274792,4539.2,4539.1,1.164]
[1759683666985,0.39916792,4539.2,4539.1,1.164]
[1759683667885,5.04371982,4539.2,4539.1,0.23]
[1759683668090,0.9642,4538.7,4538.6,1.153]
[1759683668386,0.9642,4538.7,4538.6,0.934]
[1759683668589,0.9642,4538.7,4538.6,1.164]
[1759683669185,0.9642,4538.7,4537.0,35.75432]
[1759683669186,0.39653,4537.9,4537.5,1.3128]
[1759683669388,0.39656,4537.6,4537.3,0.934]
[1759683669585,1.36076,4537.6,4537.5,0.23]
[1759683669987,1.8336058,4537.6,4537.5,0.23]
[1759683671083,1.4370458,4537.6,4537.5,1.164]
[1759683671281,0.9642,4537.6,4537.5,1.164]
[1759683671595,0.9642,4537.6,4537.5,0.23]
[1759683671886,0.3803,4537.5,4536.7,0.934]
[1759683672088,1.36083,4536.9,4536.8,0.23]
[1759683672489,1.36083,4536.9,4536.8,1.164]
[1759683672686,0.9642,4537.4,4536.8,0.62662]
[1759683672888,0.39657,4537.5,4537.0,0.77541]
[1759683673089,1.36086,4536.5,4536.4,0.00215594]
[1759683673288,0.39664,4536.8,4536.5,0.3788]
[1759683673490,3.2078,4537.1,4536.6,1.164]
[1759683673491,0.39663,4536.9,4536.6,1.164]
[1759683673799,4.172,4537.1,4536.6,0.23]
[1759683674089,3.2078,4537.8,4537.0,0.3788]
[1759683674393,0.47316102,4537.7,4537.6,0.934]
[1759683674591,0.9642,4537.7,4537.6,0.934]
[1759683674792,3.2078,4537.8,4537.4,0.39657]
[1759683675089,3.2078,4537.8,4537.6,0.39655]
[1759683675290,0.39651,4538.3,4538.1,0.934]
[1759683675493,0.9642,4538.2,4538.1,0.934]
[1759683675688,0.9642,4538.4,4537.7,0.23]
[1759683675894,0.9642,4537.8,4537.7,0.23]
[1759683676291,0.39659,4537.2,4537.1,0.934]
[1759683676490,0.39659,4537.2,4537.1,1.164]
[1759683676688,0.39658,4537.4,4537.1,0.6266]
[1759683677300,0.39656,4537.6,4537.2,0.39659]
[1759683677796,3.5881,4538.0,4537.1,0.23]
[1759683677797,0.39654,4537.9,4537.6,0.39656]
[1759683678095,3.2078,4538.0,4537.6,0.39656]
[1759683678096,0.39655,4537.8,4537.7,0.9632]
[1759683678993,3.2078,4538.6,4538.0,0.3891]
[1759683679187,0.4036,4539.5,4538.5,4.171]
[1759683679388,0.47318307,4539.1,4538.7,0.9632]
[1759683679594,0.39917792,4539.2,4539.1,0.9632]
[1759683679799,1.37477792,4539.2,4539.1,0.9632]
[1759683679999,1.84792914,4539.2,4539.1,0.9632]
[1759683680400,0.39646,4538.7,4538.6,1.1932]
[1759683680601,0.97834792,4539.2,4538.6,1.1932]
[1759683680795,0.9756,4539.1,4538.7,0.9632]
[1759683680996,0.00274792,4539.2,4538.6,0.62647]
[1759683681196,0.00274792,4539.2,4538.2,0.9632]
[1759683681403,1.3404,4539.0,4538.4,0.39649]
[1759683681603,0.39647,4538.7,4538.3,0.62649]
[1759683681901,0.39647,4538.7,4538.4,0.9632]
[1759683682098,4.1834,4539.1,4538.3,0.6265]
[1759683682303,4.1834,4539.1,4538.4,0.9632]
[1759683683104,0.39647,4538.7,4538.4,0.39648]
[1759683683404,0.39649,4538.5,4538.3,0.23]
[1759683683598,0.39646,4538.8,4538.3,1.35969]
[1759683683799,3.2078,4539.1,4538.6,0.9632]
[1759683684006,3.2078,4539.1,4539.0,1.74874]
[1759683684205,0.00274792,4539.2,4539.1,0.9632]
[1759683685400,0.39638,4539.7,4539.5,0.3891]
[1759683685602,1.37198,4539.7,4539.6,0.23]
[1759683686108,0.39638,4539.7,4539.6,0.9632]
[1759683686404,0.9756,4539.4,4539.3,0.23]
[1759683686603,0.9756,4539.4,4539.3,0.23160078]
[1759683687004,0.9756,4539.4,4539.3,0.00160078]
[1759683688100,0.9856,4539.4,4539.3,0.00160078]
[1759683689306,0.9856,4539.4,4539.3,0.96480078]
[1759683689504,0.01,4539.4,4539.3,0.96480078]
[1759683692401,0.01,4539.4,4539.3,5.96480078]
[1759683692810,0.01,4539.4,4539.3,7.22990078]
[1759683693508,0.01,4539.4,4539.3,2.22990078]
[1759683694308,0.01,4539.4,4539.3,2.85531078]
[1759683694505,0.6592,4539.4,4539.3,2.22990078]
[1759683694712,0.6592,4539.4,4539.3,0.00160078]
[1759683694713,1.3885,4539.4,4539.3,0.00160078]
[1759683694913,0.4064,4539.4,4539.3,0.95540078]
[1759683695508,0.01,4539.4,4539.3,0.95540078]
[1759683697208,0.39643,4539.1,4539.0,3.2078]
[1759683697405,0.9821,4538.6,4538.5,3.2078]
[1759683697608,1.37858,4538.5,4538.4,0.229]
[1759683697913,0.3965,4538.3,4538.0,3.99342]
[1759683698117,0.9821,4538.2,4538.1,0.229]
[1759683700409,1.37862,4538.1,4538.0,0.00208379]
[1759683702612,1.85471802,4538.1,4538.0,0.00208379]
[1759683702812,3.15331802,4538.1,4538.0,0.00208379]
[1759683703012,6.05694237,4538.1,4538.0,0.00208379]
[1759683703613,2.6773,4537.1,4537.0,1.6935]
[1759683703814,2.6773,4537.1,4537.0,1.5775]
[1759683704615,2.6773,4537.1,4537.0,1.57936715]
[1759683705912,2.6773,4537.1,4537.0,0.00186715]
[1759683706409,1.2986,4536.2,4536.1,1.7785]
[1759683706614,1.2986,4536.2,4536.1,2.4199]
[1759683707012,0.6492,4536.2,4536.1,2.4199]
[1759683707417,0.0016672,4536.2,4536.1,2.42263257]
[1759683708812,0.0016672,4536.2,4536.1,2.22163257]
[1759683709014,0.6005672,4536.2,4536.1,2.45063257]
[1759683709214,2.1372672,4536.2,4536.1,2.22163257]
[1759683709612,0.0016672,4536.2,4536.1,2.22163257]
[1759683710021,2.1372672,4536.2,4536.1,2.22163257]
[1759683710218,0.6005672,4536.2,4536.1,2.45063257]
[1759683711320,2.1372672,4536.2,4536.1,2.45063257]
[1759683711917,2.1372672,4536.2,4536.1,2.22163257]
[1759683712222,2.1372672,4536.2,4536.1,2.45063257]
[1759683713722,0.6005672,4536.2,4536.1,2.45063257]
[1759683716329,0.0016672,4536.2,4536.1,2.45063257]
[1759683716726,0.0016672,4536.2,4536.1,7.45063257]
[1759683717523,0.0016672,4536.2,4536.1,7.22163257]
[1759683717738,0.9972472,4536.2,4536.1,1.58023257]
[1759683718023,2.5339472,4536.2,4536.1,1.77233257]
[1759683718226,2.5339472,4536.2,4536.1,1.54333257]
[1759683718425,0.0016672,4536.2,4536.1,2.39743257]
[1759683718628,0.0016672,4536.2,4536.1,7.79412257]
[1759683720837,0.99137,4537.8,4537.5,2.5106]
[1759683720838,3.8067,4537.6,4537.5,2.5106]
[1759683721023,4.83516,4537.6,4537.5,2.5106]
[1759683721229,5.73996,4537.6,4537.5,2.1448]
[1759683721628,4.4386,4537.6,4537.5,2.5106]
[1759683721825,3.80918382,4537.6,4537.5,2.7396]
[1759683722034,0.00248382,4537.6,4537.5,2.7396]
[1759683722535,1e-08,4537.6,4537.5,2.7396]
[1759683722736,1e-08,4537.6,4537.5,7.7396]
[1759683723435,1.2654,4539.0,4537.5,7.7396]
[1759683723436,0.39645,4539.0,4538.6,0.9169]
[1759683723626,0.5989,4538.8,4538.7,2.3738]
[1759683724138,2.1356,4538.8,4538.7,2.3738]
[1759683724334,2.13825085,4538.8,4538.7,2.77026]
[1759683724530,2.13825085,4538.8,4538.7,2.3738]
[1759683725426,1.5367,4538.1,4538.0,1.5197]
[1759683725631,2.1356,4538.1,4538.0,2.3738]
[1759683725832,0.00265085,4538.8,4538.7,2.1448]
[1759683726033,0.00265085,4538.8,4538.7,2.3738]
[1759683727140,0.48352497,4538.8,4538.7,2.3738]
[1759683727742,1.71432497,4538.8,4538.7,2.3738]
[1759683728043,2.61912497,4538.8,4538.7,2.3738]
[1759683728236,1.71432497,4538.8,4538.7,2.3738]
[1759683728736,2.61912497,4538.8,4538.7,2.3738]
[1759683729332,1.71432497,4538.8,4538.7,2.3738]
[1759683729735,2.61912497,4538.8,4538.7,0.229]
[1759683729936,0.5989,4538.4,4538.3,2.1448]
[1759683730239,0.5989,4538.4,4538.3,2.3738]
[1759683730539,2.1356,4538.4,4538.3,2.1448]
[1759683730731,1.2308,4538.1,4537.4,0.39657]
[1759683730934,0.5989,4537.6,4537.5,1.99026]
[1759683731134,0.5989,4537.6,4537.5,1.8227]
[1759683731333,0.9048,4537.9,4537.6,0.39656]
[1759683731532,0.9048,4538.9,4538.2,1.2279]
[1759683731736,0.9048,4538.9,4538.6,2.1448]
[1759683731737,1.07975517,4538.7,4538.6,2.1448]
[1759683731935,0.48085517,4538.7,4538.6,2.77027]
[1759683732138,1.07975517,4538.7,4538.6,2.3738]
[1759683732333,0.5989,4538.7,4538.6,2.3738]
[1759683732540,0.39911085,4538.8,4538.6,2.3738]
[1759683732739,0.00265085,4538.8,4538.7,2.54126]
[1759683734541,0.01,4539.4,4539.3,2.54121]
[1759683734742,0.01,4539.4,4539.3,2.77021]
[1759683735538,0.01209378,4539.4,4539.3,2.7721217]
[1759683735744,0.01209378,4539.4,4539.3,2.5431217]
[1759683735939,0.01209378,4539.4,4539.3,2.3757117]
[1759683736545,2.54409378,4539.4,4539.3,0.9188117]
[1759683736849,2.54409378,4539.4,4539.3,2.3757117]
[1759683737148,1.00739378,4539.4,4539.3,2.3757117]
[1759683737338,0.01209378,4539.4,4539.3,2.3757117]
[1759683737534,2.16619378,4539.4,4539.3,2.3757117]
[1759683738139,0.60869378,4539.4,4539.3,2.3757117]
[1759683738639,0.01209378,4539.4,4539.3,2.3757117]
[1759683740943,0.40849378,4539.4,4539.3,2.1467117]
[1759683741248,1.64739378,4539.4,4539.3,2.3465117]
[1759683741450,0.01209378,4539.4,4539.3,2.3465117]
[1759683741840,2.16619378,4539.4,4539.3,2.1175117]
[1759683742050,2.16619378,4539.4,4539.3,1.7007117]
[1759683742349,1.25099378,4539.4,4539.3,2.2966117]
[1759683742550,2.16619378,4539.4,4539.3,2.2966117]
[1759683743150,0.01209378,4539.4,4539.3,2.2966117]
[1759683743538,0.01209378,4539.4,4539.3,2.0676117]
[1759683743738,0.01209378,4539.4,4539.3,2.2966117]
[1759683746146,2.55055,4538.9,4538.8,1.4698]
[1759683746648,2.55055,4538.9,4538.1,3.2078]
[1759683746649,1.2389,4538.2,4538.1,0.8704]
[1759683746847,0.9152,4537.6,4537.2,0.8704]
[1759683747145,0.39658,4537.5,4537.3,0.229]
[1759683747346,0.39658,4537.5,4537.4,0.8704]
[1759683747944,1.31178,4537.5,4537.4,0.8704]
[1759683748145,1.31179,4537.3,4537.2,0.00223596]
[1759683748347,6.31179,4537.3,4537.2,0.00223596]
[1759683748545,3.32709842,4537.3,4537.2,0.87263596]
[1759683748745,0.48077894,4537.3,4537.2,0.87263596]
[1759683750040,1.39597894,4537.3,4537.2,0.00223596]
[1759683750242,6.39597894,4537.3,4537.2,0.00223596]
[1759683751151,9.21112919,4537.3,4537.2,0.00223596]
[1759683752747,4.21112919,4537.3,4537.2,0.00223596]
[1759683752949,1.39597894,4537.3,4537.2,0.86673596]
[1759683753150,3.2078,4537.9,4537.2,0.86673596]
[1759683753350,0.48250607,4537.8,4537.7,1.26105]
[1759683753550,3.2078,4538.4,4538.3,0.8645]
[1759683753754,4.566977,4538.4,4538.3,0.8645]
[1759683753955,4.566977,4538.4,4537.7,0.8645]
[1759683754254,4.566977,4538.4,4537.6,3.60436]
[1759683754255,0.482477,4538.3,4538.2,0.8645]
[1759683754554,0.3965,4538.4,4538.0,0.3474]
[1759683754555,0.39649,4538.4,4538.1,0.8645]
[1759683754855,0.39649,4538.4,4538.0,0.74392]
[1759683755260,0.39649,4538.5,4538.0,0.3474]
[1759683755454,0.87891694,4538.4,4538.0,0.3474]
[1759683755649,0.8767,4538.2,4537.6,0.8645]
[1759683755855,1.2732,4538.3,4537.7,0.229]
[1759683756157,1.27321,4538.2,4537.8,0.39654]
[1759683756350,1.27321,4538.2,4537.9,0.8645]
[1759683756546,3.2078,4538.4,4538.0,0.3474]
[1759683756750,0.39651,4538.3,4538.0,0.3474]
[1759683756947,3.2078,4538.4,4538.0,0.74392]
[1759683757353,3.6043,4538.4,4538.0,0.74392]
[1759683757859,3.2078,4538.4,4538.0,0.74392]
[1759683758059,3.2078,4538.4,4538.1,0.8645]
[1759683758257,0.3965,4538.3,4538.0,0.74392]
[1759683758457,0.3965,4538.3,4538.0,0.3474]
[1759683758658,0.3965,4538.3,4538.1,0.8645]
[1759683758858,0.3965,4538.3,4538.0,0.3474]
[1759683759062,1.2732,4538.3,4538.0,0.3474]
[1759683759256,3.2078,4538.4,4537.8,0.8645]
[1759683759559,3.2078,4538.4,4537.7,0.229]
[1759683759560,0.39642,4539.3,4538.9,0.39644]
[1759683759749,0.8767,4539.8,4539.0,0.3474]
[1759683759954,0.39638,4539.7,4539.3,0.8645]
[1759683760156,0.39639,4539.6,4539.3,0.8645]
[1759683760459,0.88879378,4539.4,4539.3,0.8645]
[1759683761054,0.39641,4539.3,4539.2,0.8645]
[1759683761856,0.8767,4539.3,4538.6,1.26097]
[1759683762060,1.27314,4539.0,4538.8,0.8645]
[1759683762756,0.01209378,4539.4,4538.0,3.5552]
[1759683762757,0.39649,4538.5,4538.0,3.5552]
[1759683763061,0.39647,4538.7,4538.2,0.3965]
[1759683763256,0.8767,4538.6,4538.3,0.39649]
[1759683763449,0.39648,4538.6,4538.4,0.8645]
[1759683763756,0.8767,4538.9,4538.4,0.8645]
[1759683763961,0.39647,4538.7,4538.5,0.8645]
[1759683764455,1.27317,4538.7,4538.5,0.8645]
[1759683764660,0.8767,4538.6,4538.5,0.8645]
[1759683765459,3.2078,4538.9,4538.3,0.229]
[1759683765663,1.27319,4538.5,4538.4,0.8645]
[1759683766361,1.27319,4538.5,4538.0,0.3474]
[1759683766362,0.8767,4538.8,4538.0,0.3474]
[1759683766556,2.90419852,4538.5,4538.3,0.8645]
[1759683766752,0.39642,4539.3,4538.4,0.8645]
[1759683766955,0.01209378,4539.4,4539.1,1.26093]
[1759683766956,0.48245013,4539.2,4539.1,1.26093]
[1759683767657,0.01209378,4539.4,4539.1,0.8872]
[1759683767852,0.01209378,4539.4,4539.3,0.8872]
[1759683768867,0.8765,4539.3,4539.0,0.3474]
[1759683769054,0.01209378,4539.4,4538.8,0.8872]
[1759683769259,0.39644,4539.0,4538.8,0.8872]
[1759683769458,0.39642,4539.2,4538.8,0.39645]
[1759683770160,0.39642,4539.2,4538.9,0.8872]
[1759683770364,0.01209378,4539.4,4538.9,0.8872]
[1759683770563,0.88859378,4539.4,4539.0,0.76763]
[1759683770863,0.01209378,4539.4,4539.0,0.76763]
[1759683771066,0.01209378,4539.4,4539.1,0.8872]
[1759683771367,0.40850378,4539.4,4539.0,0.76763]
[1759683771667,0.40850378,4539.4,4539.1,0.8872]
[1759683772169,0.01209378,4539.4,4539.3,0.8872]
[1759683772765,0.01209378,4539.4,4539.3,2.0762]
[1759683772966,0.49472738,4539.4,4539.3,2.0762]
[1759683773270,1.09332738,4539.4,4539.3,2.0762]
[1759683773467,2.57072738,4539.4,4539.3,0.8872]
[1759683773768,2.57072738,4539.4,4539.3,1.4798]
[1759683774263,2.57072738,4539.4,4539.3,2.0762]
[1759683774567,1.69422738,4539.4,4539.3,2.0762]
[1759683775269,1.69422738,4539.4,4539.3,2.21637621]
[1759683775462,2.57072738,4539.4,4539.3,2.21637621]
[1759683776558,1.69422738,4539.4,4539.3,2.21637621]
[1759683777965,2.57072738,4539.4,4539.3,2.21637621]
[1759683778158,2.57072738,4539.4,4539.3,1.61997621]
[1759683778769,2.57072738,4539.4,4539.3,0.14017621]
[1759683779170,7.57072738,4539.4,4539.3,0.14017621]
[1759683780059,2.57072738,4539.4,4539.3,0.14017621]
[1759683780261,2.57072738,4539.4,4539.3,2.21637621]
[1759683780862,2.57072738,4539.4,4539.3,6.21e-06]
[1759683781066,0.99505,4538.8,4538.7,1.7088]
[1759683781371,1.4776836,4538.8,4538.7,2.3052]
[1759683781674,2.9550836,4538.8,4538.7,2.3052]
[1759683781871,1.4776836,4538.8,4538.7,2.0762]
[1759683782072,0.8790836,4538.8,4538.7,2.0762]
[1759683782371,0.4826336,4538.8,4538.7,2.0762]
[1759683782569,0.01209378,4539.4,4539.3,2.0762]
[1759683783067,1.69528326,4539.4,4539.3,2.0762]
[1759683783664,1.1995,4539.0,4538.9,0.8216]
[1759683783871,1.1995,4539.0,4538.9,2.3052]
[1759683783872,1.47872948,4539.0,4538.9,2.3052]
[1759683784668,0.48368948,4539.0,4538.9,2.3052]
[1759683784870,0.39643,4539.2,4539.1,2.0762]
[1759683785071,1.48397781,4539.2,4539.1,2.0762]
[1759683785669,0.48894781,4539.2,4539.1,2.0762]
[1759683786372,2.56494781,4539.2,4539.1,1.7088]
[1759683786773,1.08754781,4539.2,4539.1,2.3052]
[1759683787271,0.48918257,4539.2,4539.1,2.70163]
[1759683787470,0.48918257,4539.2,4539.1,2.0762]
[1759683787673,0.61069378,4539.4,4539.3,1.189]
[1759683787874,1.49642585,4539.4,4539.3,2.0762]
[1759683789073,1.49642585,4539.4,4539.3,2.3052]
[1759683789263,2.97382585,4539.4,4539.3,1.7088]
[1759683789665,2.09732585,4539.4,4539.3,2.3052]
[1759683789864,2.97382585,4539.4,4539.3,2.3052]
[1759683792779,2.97382585,4539.4,4539.3,2.0762]
[1759683792976,2.97382585,4539.4,4539.3,2.3052]
[1759683793477,1.10002585,4539.4,4539.3,2.3052]
[1759683793670,0.50142585,4539.4,4539.3,2.3052]
[1759683794171,1.70092585,4539.4,4539.3,2.3052]
[1759683794570,0.50142585,4539.4,4539.3,2.3052]
[1759683795874,2.97382585,4539.4,4539.3,0.229]
[1759683796075,2.47244,4539.0,4538.9,1.4798]
[1759683796265,0.39646,4538.8,4538.7,1.189]
[1759683796464,0.39646,4538.8,4538.7,2.3052]
[1759683796465,1.48439207,4538.8,4538.7,2.3052]
[1759683797073,2.96179207,4538.8,4538.7,2.3052]
[1759683797572,2.08529207,4538.8,4538.7,2.3052]
[1759683797772,3.00729207,4538.8,4538.7,0.5926]
[1759683798075,1.2007,4538.6,4538.5,2.4142]
[1759683798270,1.69003207,4538.6,4538.5,2.6432]
[1759683799177,1.10803207,4538.6,4538.5,2.6432]
[1759683801982,0.48933207,4538.6,4538.5,2.6432]
[1759683802280,0.48933207,4538.6,4538.5,1.7529]
[1759683802679,0.48933207,4538.6,4538.5,3.03968]
[1759683803382,0.01209378,4539.4,4539.3,1.159]
[1759683803572,0.49820179,4539.4,4539.3,2.67471]
[1759683804476,1.11690179,4539.4,4539.3,2.67471]
[1759683804674,1.11690179,4539.4,4539.3,2.2783]
[1759683806779,0.39642,4539.2,4539.1,0.5911]
[1759683806984,2.1227,4539.2,4539.1,1.7104]
[1759683807185,2.1227,4539.2,4539.1,2.2783]
[1759683807383,1.2007,4539.2,4539.1,2.2783]
[1759683807575,2.1227,4539.2,4539.1,2.2783]
[1759683808577,2.1227,4539.2,4539.1,1.7104]
[1759683809782,2.1227,4538.6,4538.5,2.0493]
[1759683810079,0.6187,4538.6,4538.5,2.6432]
[1759683810886,0.39649,4538.4,4538.3,3.2078]
[1759683811179,2.1227,4537.7,4537.6,1.4814]
[1759683811379,2.1227,4537.7,4537.6,0.8201]
[1759683811576,1.2007,4537.7,4537.6,2.2783]
[1759683812179,2.1227,4537.7,4537.6,2.2783]
[1759683812887,2.1227,4537.7,4537.6,2.0493]
[1759683813079,1.2007,4537.7,4537.6,2.2783]
[1759683814382,0.5831,4537.8,4537.7,2.44985]
[1759683814577,0.48458628,4537.8,4537.7,2.67885]
[1759683814774,0.39648,4538.6,4537.7,2.2823]
[1759683814979,2.47968,4538.6,4538.5,2.0533]
[1759683815190,2.9642131,4538.6,4538.5,2.0533]
[1759683815487,2.9642131,4538.6,4538.5,1.4703]
[1759683816086,2.5677331,4538.6,4538.5,1.4703]
[1759683816284,1.6460331,4538.6,4538.5,2.4195]
[1759683818190,0.4845331,4538.6,4538.5,3.04498]
[1759683818989,0.39645,4538.9,4538.5,2.13468]
[1759683819290,0.5831,4538.7,4538.6,2.0533]
[1759683819487,0.48437283,4538.7,4538.6,2.0533]
[1759683819684,0.5831,4539.0,4538.9,2.0533]
[1759683819989,1.06749851,4539.0,4538.9,2.2823]
[1759683822177,0.48439851,4539.0,4538.9,2.2823]
[1759683823791,0.48439851,4539.0,4538.9,5.4901]
[1759683824193,2.49170378,4539.4,4539.3,0.56]
[1759683824393,2.97624655,4539.4,4539.3,1.6983]
[1759683824596,2.05454655,4539.4,4539.3,2.2813]
[1759683824890,1.47614655,4539.4,4539.3,2.2813]
[1759683825192,0.49663655,4539.4,4539.3,2.67771]
[1759683826889,0.01209378,4539.4,4539.3,2.67771]
[1759683828694,0.58029378,4539.4,4539.3,2.0533]
[1759683828996,2.07369378,4539.4,4539.3,2.2813]
[1759683829192,2.07369378,4539.4,4539.3,2.0533]
[1759683829495,5.01314793,4539.4,4539.3,0.228]
[1759683829689,6.16164793,4539.4,4539.3,0.228]
[1759683829884,0.5682,4538.6,4538.5,1.5225]
[1759683830089,1.1485,4538.6,4538.5,2.622]
[1759683830289,2.0616,4538.6,4538.5,2.2558]
[1759683830491,1.1485,4538.6,4538.5,2.6258]
[1759683830689,0.5682,4538.6,4538.5,2.6258]
[1759683830889,2.0616,4539.0,4538.9,1.1563]
[1759683831191,2.0616,4539.0,4538.9,2.2558]
[1759683831392,2.0616,4539.0,4538.9,2.0278]
[1759683831689,2.0616,4539.0,4538.9,0.5558]
[1759683831894,2.0616,4539.0,4538.9,0.7838]
[1759683832192,2.0616,4539.0,4538.9,1.6553]
[1759683832396,0.5682,4538.6,4538.5,1.4273]
[1759683832691,0.83702713,4539.0,4538.0,2.79052]
[1759683832692,1.1485,4538.1,4538.0,2.79052]
[1759683832897,1.1485,4538.1,4538.0,3.01852]
[1759683833299,0.5682,4538.1,4538.0,3.01852]
[1759683833998,0.5682,4538.1,4538.0,2.622]
[1759683834198,1.1485,4538.1,4538.0,2.622]
[1759683834401,1.1485,4538.1,4538.0,2.394]
[1759683834590,1.1485,4538.1,4538.0,2.622]
[1759683835096,1.4813,4538.5,4538.4,1.1563]
[1759683835297,2.0616,4538.5,4538.4,2.2558]
[1759683836697,2.54555051,4538.5,4538.4,2.2558]
[1759683838397,1.63245051,4538.5,4538.4,2.2558]
[1759683838596,2.54555051,4538.5,4538.4,2.2558]
[1759683839398,0.48395051,4538.5,4538.4,2.2558]
[1759683839700,3.776,4538.8,4538.7,2.0278]
[1759683839894,4.26001915,4538.8,4538.7,2.2558]
[1759683840292,0.3532,4539.5,4538.7,2.2558]
[1759683840293,0.39639,4539.6,4539.1,0.39642]
[1759683840599,0.58029378,4539.4,4539.3,2.0278]
[1759683840801,2.55763274,4539.4,4539.3,2.0278]
[1759683840991,2.55763274,4539.4,4539.3,1.4273]
[1759683841196,2.55763274,4539.4,4538.5,0.37]
[1759683841197,2.0616,4539.1,4538.5,0.37]
[1759683841400,0.83722182,4539.0,4538.7,1.4273]
[1759683841602,1.67519,4538.5,4538.2,4.0793]
[1759683841801,2.82369,4538.5,4538.4,0.228]
[1759683842102,2.82369,4538.5,4538.4,0.7838]
[1759683843099,2.0616,4538.5,4538.4,2.65229]
[1759683843501,2.0616,4538.5,4538.4,2.2558]
[1759683844400,2.54590755,4538.5,4538.4,2.2558]
[1759683844607,2.54590755,4538.5,4538.4,2.0278]
[1759683844810,2.54590755,4538.5,4538.4,2.2558]
[1759683845105,2.0616,4538.5,4538.4,2.2558]
[1759683846106,2.45815,4537.8,4537.7,0.8715]
[1759683846302,2.0616,4537.8,4537.7,1.6553]
[1759683846503,2.0616,4537.8,4537.7,2.2558]
[1759683847399,2.0616,4537.8,4537.7,2.0278]
[1759683847605,2.0616,4537.8,4537.7,0.7838]
[1759683847803,2.0616,4537.8,4537.7,0.228]
[1759683848009,2.0616,4537.8,4537.4,2.0278]
[1759683848010,1.54507,4537.5,4537.4,2.0278]
[1759683848205,1.54507,4537.5,4537.4,2.2558]
[1759683848806,1.1485,4537.5,4537.4,2.2558]
[1759683849306,1.1485,4537.5,4537.4,2.0278]
[1759683849505,2.0616,4537.3,4537.2,0.00223596]
[1759683849809,5.39729364,4537.3,4537.2,0.00223596]
[1759683850309,5.62529364,4537.3,4537.2,0.00223596]
[1759683850903,10.62529364,4537.3,4537.2,0.00223596]
[1759683852314,10.6247449,4537.3,4537.2,0.00223596]
[1759683853206,10.3967449,4537.3,4537.2,0.00223596]
[1759683853413,10.6247449,4537.3,4537.2,0.00223596]
[1759683854706,10.3967449,4537.3,4537.2,0.00223596]
[1759683855108,10.6247449,4537.3,4537.2,0.00223596]
[1759683855412,10.3967449,4537.3,4537.2,0.55803596]
[1759683855612,10.6247449,4537.3,4537.2,1.42953596]
[1759683856417,10.3967449,4537.3,4537.2,1.42953596]
[1759683856611,10.6247449,4537.3,4537.2,0.00223596]
[1759683858216,10.3967449,4537.3,4537.2,0.00223596]
[1759683858414,10.6247449,4537.3,4537.2,0.00223596]
[1759683858617,10.3967449,4537.3,4537.2,0.00223596]
[1759683858818,10.6247449,4537.3,4537.2,0.00223596]
[1759683859218,10.3967449,4537.3,4537.2,0.00223596]
[1759683859418,10.6247449,4537.3,4537.2,0.00223596]
[1759683859808,10.3967449,4537.3,4537.2,0.00223596]
[1759683860014,10.6247449,4537.3,4537.2,0.00223596]
[1759683861321,10.3967449,4537.3,4537.2,0.00223596]
[1759683861522,10.6247449,4537.3,4537.2,0.00223596]
[1759683863217,10.3967449,4537.3,4537.2,0.60013596]
[1759683863416,1.63222156,4537.3,4537.2,2.03123596]
[1759683863614,1.398,4537.8,4537.7,1.54205]
[1759683863820,1.88114423,4537.8,4537.7,2.42555]
[1759683864021,1.398,4537.8,4537.7,2.42555]
[1759683864222,1.9602,4537.8,4537.7,2.42555]
[1759683865323,1.1426,4537.8,4537.7,2.42555]
[1759683866023,0.5804,4537.8,4537.7,2.42555]
[1759683867126,3.2078,4537.9,4537.8,2.029]
[1759683867330,3.69109681,4537.9,4537.8,2.029]
[1759683867618,4.27149681,4537.9,4537.8,2.029]
[1759683867825,3.7882,4537.9,4537.8,2.029]
[1759683868218,3.2078,4537.9,4537.8,2.029]
[1759683868420,0.01209378,4539.4,4538.9,0.5979]
[1759683868421,3.2078,4539.0,4538.9,0.5979]
[1759683868613,5.08916195,4539.0,4538.9,2.029]
[1759683868816,8.68304763,4539.0,4538.9,2.029]
[1759683869216,8.45504763,4539.0,4538.9,2.029]
[1759683869418,8.68304763,4539.0,4538.8,0.39645]
[1759683869723,2.44356195,4538.9,4538.8,0.8835]
[1759683870118,5.30228921,4538.9,4538.8,0.8835]
[1759683870521,1.9602,4538.6,4538.5,1.4814]
[1759683870718,2.44356195,4538.6,4538.5,1.4814]
[1759683871518,2.44356195,4538.6,4538.5,2.029]
[1759683872519,1.56332,4538.1,4538.0,0.5468]
[1759683872721,1.9749,4538.1,4538.0,0.5468]
[1759683873025,1.9749,4538.1,4538.0,1.443]
[1759683874127,1.9749,4538.1,4538.0,2.0342]
[1759683874723,1.9749,4538.1,4538.0,2.3694]
[1759683875126,1.1668,4538.1,4538.0,2.3694]
[1759683875825,1.20455,4538.9,4538.4,0.39649]
[1759683876023,2.59935,4538.9,4538.8,1.443]
[1759683876222,3.08484434,4538.9,4538.8,1.443]
[1759683876422,2.85684434,4538.9,4538.8,1.443]